fUST/lending_fUST_20240514
["ID","MTS","AMOUNT","RATE_DAILY","PERIOD"]
[326989935,1715688646338,-500.0,0.0001998,2]
[326989937,1715688646347,-500.0,0.0001998,2]
[326989939,1715688646356,-500.0,0.0001998,2]
[326989941,1715688646365,-500.0,0.0001998,2]
[326989943,1715688646374,-500.0,0.0001998,2]
[326989945,1715688646383,-500.0,0.0001998,2]
[326989947,1715688646392,-500.0,0.0001998,2]
[326989949,1715688646401,-500.0,0.0001998,2]
[326989951,1715688646410,-500.0,0.0001998,2]
[326989953,1715688646419,-500.0,0.0001998,2]
[326989955,1715688646428,-500.0,0.0001998,2]
[326989957,1715688646437,-500.0,0.0001998,2]
[326989959,1715688646446,-500.0,0.0001998,2]
[326989960,1715688646455,-500.0,0.0001998,2]
[326989962,1715688646465,-500.0,0.0001998,2]
[326989964,1715688646474,-500.0,0.0001998,2]
[326989966,1715688646484,-500.0,0.0001998,2]
[326989968,1715688646493,-500.0,0.0001998,2]
[326989970,1715688646503,-500.0,0.0001998,2]
[326989972,1715688646512,-500.0,0.0001998,2]
[326989974,1715688646521,-500.0,0.0001998,2]
[326989976,1715688646530,-500.0,0.0001998,2]
[326989978,1715688646540,-362.97107771,0.0001998,2]
[326989980,1715688646549,-500.0,0.0001998,2]
[326989982,1715688646558,-500.0,0.0001998,2]
[326989984,1715688646567,-500.0,0.0001998,2]
[326989986,1715688646577,-500.0,0.0001998,2]
[326989988,1715688646586,-500.0,0.0001998,2]
[326989991,1715688646596,-35546.94790445,0.00019981,2]
[326989992,1715688646606,-500.0,0.00019981,2]
[326989995,1715688646619,-409.4544495,0.00019981,2]
[326989997,1715688646629,-368.38459283,0.00019981,2]
[326989999,1715688646638,-500.0,0.00019981,2]
[326990001,1715688646648,-492.44738441,0.00019981,2]
[326990002,1715688646659,-500.0,0.00019981,2]
[326990005,1715688646668,-500.0,0.00019981,2]
[326990006,1715688646677,-500.0,0.00019981,2]
[326990008,1715688646687,-500.0,0.00019981,2]
[326990010,1715688646700,-500.0,0.00019981,2]
[326990012,1715688646710,-500.0,0.00019981,2]
[326990015,1715688646720,-500.0,0.00019981,2]
[326990016,1715688646729,-500.0,0.00019981,2]
[326990018,1715688646739,-500.0,0.00019981,2]
[326990021,1715688646749,-500.0,0.00019981,2]
[326990023,1715688646759,-500.0,0.00019981,2]
[326990025,1715688646768,-199.85733165,0.00019981,2]
[326990026,1715688646780,-500.0,0.00019981,2]
[326990028,1715688646789,-500.0,0.00019981,2]
[326990030,1715688646799,-500.0,0.00019981,2]
[326990032,1715688646808,-500.0,0.00019981,2]
[326990034,1715688646817,-500.0,0.00019981,2]
[326990036,1715688646826,-500.0,0.00019981,2]
[326990038,1715688646835,-500.0,0.00019981,2]
[326990040,1715688646844,-500.0,0.00019981,2]
[326990042,1715688646854,-500.0,0.00019981,2]
[326990044,1715688646863,-500.0,0.00019981,2]
[326990046,1715688646872,-500.0,0.00019981,2]
[326990048,1715688646882,-489.34726465,0.00019981,2]
[326990212,1715688956915,1840.0,0.000266,120]
[326990213,1715689137135,2102.94,0.000175,2]
[326990214,1715689380546,442.86248838,9.999e-05,2]
[326990215,1715689406258,1291.44,0.000175,2]
[326990216,1715689406346,260.91918383,9.999e-05,2]
[326990218,1715689434331,513.01214525,9.999e-05,2]
[326990219,1715689437654,1042.60704695,9.999e-05,2]
[326990220,1715689472386,8202.83995019,9.999e-05,2]
[326990221,1715689493965,5493.36309505,9.999e-05,2]
[326990222,1715689493999,10638.76753085,9.999e-05,2]
[326990223,1715689509979,3413.35027017,9.999e-05,2]
[326990224,1715689718025,817.58871518,9.999e-05,2]
[326990225,1715689718341,160.98357446,9.999e-05,2]
[326990226,1715689729492,155.87576879,9.999e-05,2]
[326990275,1715689832488,-430.628,0.00018448,2]
[326990278,1715689832500,-82.38414525,0.00018448,2]
[326990280,1715689832509,-261.67071414,0.00018449,2]
[326990305,1715689836517,465.74917975,9.999e-05,2]
[326990359,1715689838627,-181.19177424,0.00018449,2]
[326990361,1715689838637,-260.91918383,0.00018449,2]
[326990363,1715689838646,-4651.77633915,0.00018451,2]
[326990494,1715689840766,-528.18127841,0.00018451,2]
[326990500,1715689840817,-2709.16658215,0.00018451,2]
[326990502,1715689840826,-257.0797259,0.00018452,2]
[326990504,1715689840836,-165.35574482,0.000188,2]
[326990506,1715689840845,-150.0,0.000189,2]
[326990508,1715689840854,-155.38148703,0.00018979,2]
[326990510,1715689840867,-1647.01590178,0.00019562,2]
[326990512,1715689840878,-416.66666666,0.00019653,2]
[326990514,1715689840887,-187.28401308,0.00019871,2]
[326990516,1715689840896,-175.96056307,0.00019873,2]
[326990518,1715689840905,-302.87752837,0.00019969,2]
[326990520,1715689840917,-281.78925472,0.00019969,2]
[326990522,1715689840926,-1681.2123987,0.0001997,2]
[326990524,1715689840936,-500.0,0.0001997,2]
[326990526,1715689840945,-211.04887903,0.0001997,2]
[326990528,1715689840954,-500.0,0.0001997,2]
[326990530,1715689840964,-500.0,0.0001997,2]
[326990533,1715689840976,-500.0,0.0001997,2]
[326990536,1715689841003,-500.0,0.0001997,2]
[326990539,1715689841020,-159.9571995,0.0001997,2]
[326990542,1715689841043,-500.0,0.0001997,2]
[326990545,1715689841064,-500.0,0.0001997,2]
[326990548,1715689841084,-500.0,0.0001997,2]
[326990551,1715689841101,-500.0,0.0001997,2]
[326990554,1715689841121,-500.0,0.0001997,2]
[326990556,1715689841137,-500.0,0.0001997,2]
[326990560,1715689841155,-500.0,0.0001997,2]
[326990563,1715689841176,-500.0,0.0001997,2]
[326990565,1715689841190,-638.74562257,0.0001997,2]
[326990568,1715689841205,-500.0,0.0001997,2]
[326990571,1715689841225,-500.0,0.0001997,2]
[326990573,1715689841240,-500.0,0.0001997,2]
[326990576,1715689841257,-500.0,0.0001997,2]
[326990579,1715689841273,-500.0,0.0001997,2]
[326990581,1715689841288,-500.0,0.0001997,2]
[326990584,1715689841303,-500.0,0.0001997,2]
[326990586,1715689841319,-500.0,0.0001997,2]
[326990589,1715689841335,-500.0,0.0001997,2]
[326990592,1715689841350,-500.0,0.0001997,2]
[326990594,1715689841365,-500.0,0.0001997,2]
[326990597,1715689841386,-500.0,0.0001997,2]
[326990599,1715689841400,-500.0,0.0001997,2]
[326990602,1715689841414,-500.0,0.0001997,2]
[326990604,1715689841430,-500.0,0.0001997,2]
[326990607,1715689841444,-500.0,0.0001997,2]
[326990609,1715689841459,-500.0,0.0001997,2]
[326990612,1715689841473,-500.0,0.0001997,2]
[326990614,1715689841488,-500.0,0.0001997,2]
[326990617,1715689841502,-500.0,0.0001997,2]
[326990619,1715689841516,-500.0,0.0001997,2]
[326990622,1715689841531,-500.0,0.0001997,2]
[326990624,1715689841547,-500.0,0.0001997,2]
[326990627,1715689841561,-500.0,0.0001997,2]
[326990629,1715689841576,-500.0,0.0001997,2]
[326990632,1715689841590,-500.0,0.0001997,2]
[326990634,1715689841604,-500.0,0.0001997,2]
[326990637,1715689841623,-500.0,0.0001997,2]
[326990639,1715689841637,-500.0,0.0001997,2]
[326990642,1715689841650,-500.0,0.0001997,2]
[326990644,1715689841665,-500.0,0.0001997,2]
[326990647,1715689841678,-500.0,0.0001997,2]
[326990649,1715689841695,-500.0,0.0001997,2]
[326990652,1715689841710,-500.0,0.0001997,2]
[326990655,1715689841726,-500.0,0.0001997,2]
[326990657,1715689841741,-500.0,0.0001997,2]
[326990660,1715689841756,-500.0,0.0001997,2]
[326990662,1715689841770,-500.0,0.0001997,2]
[326990665,1715689841785,-500.0,0.0001997,2]
[326990667,1715689841799,-500.0,0.0001997,2]
[326990669,1715689841814,-500.0,0.0001997,2]
[326990671,1715689841934,-500.0,0.0001997,2]
[326990672,1715689841946,-500.0,0.0001997,2]
[326990673,1715689841956,-500.0,0.0001997,2]
[326990674,1715689841965,-500.0,0.0001997,2]
[326990675,1715689841975,-500.0,0.0001997,2]
[326990676,1715689841984,-477.82610089,0.0001997,2]
[326990680,1715689842983,-22.17389911,0.0001997,2]
[326990681,1715689842997,-500.0,0.0001997,2]
[326990683,1715689843007,-500.0,0.0001997,2]
[326990684,1715689843016,-500.0,0.0001997,2]
[326990685,1715689843026,-500.0,0.0001997,2]
[326990686,1715689843040,-500.0,0.0001997,2]
[326990689,1715689843049,-500.0,0.0001997,2]
[326990691,1715689843059,-500.0,0.0001997,2]
[326990693,1715689843067,-500.0,0.0001997,2]
[326990694,1715689843078,-500.0,0.0001997,2]
[326990695,1715689843087,-500.0,0.0001997,2]
[326990697,1715689843096,-500.0,0.0001997,2]
[326990699,1715689843105,-240.82804462,0.0001997,2]
[326990700,1715689843114,-500.0,0.0001997,2]
[326990701,1715689843128,-500.0,0.0001997,2]
[326990702,1715689843137,-500.0,0.0001997,2]
[326990703,1715689843146,-500.0,0.0001997,2]
[326990705,1715689843156,-500.0,0.0001997,2]
[326990706,1715689843165,-500.0,0.0001997,2]
[326990707,1715689843174,-500.0,0.0001997,2]
[326990708,1715689843184,-500.0,0.0001997,2]
[326990709,1715689843193,-500.0,0.0001997,2]
[326990710,1715689843203,-500.0,0.0001997,2]
[326990711,1715689843213,-500.0,0.0001997,2]
[326990712,1715689843223,-500.0,0.0001997,2]
[326990713,1715689843232,-500.0,0.0001997,2]
[326990714,1715689843241,-500.0,0.0001997,2]
[326990715,1715689843251,-500.0,0.0001997,2]
[326990716,1715689843259,-500.0,0.0001997,2]
[326990717,1715689843268,-500.0,0.0001997,2]
[326990718,1715689843278,-1016.08078737,0.00019971,2]
[326990719,1715689843288,-151.0,0.00019971,2]
[326990720,1715689843297,-151.0,0.00019971,2]
[326990721,1715689843306,-893.8508797,0.00019972,2]
[326990722,1715689843315,-246.775334,0.00019972,2]
[326990723,1715689843325,-671.491547,0.00019972,2]
[326990724,1715689843334,-671.491547,0.00019972,2]
[326990725,1715689843343,-671.491547,0.00019972,2]
[326990726,1715689843352,-671.491547,0.00019972,2]
[326990727,1715689843362,-151.0,0.00019972,2]
[326990728,1715689843381,-151.0,0.00019972,2]
[326990732,1715689843391,-151.0,0.00019972,2]
[326990736,1715689843401,-151.0,0.00019972,2]
[326990738,1715689843412,-151.0,0.00019972,2]
[326990740,1715689843422,-151.0,0.00019972,2]
[326990741,1715689843432,-151.0,0.00019972,2]
[326990742,1715689843441,-151.0,0.00019972,2]
[326990743,1715689843451,-207.61772,0.00019972,2]
[326990744,1715689843460,-207.61772,0.00019972,2]
[326990746,1715689843469,-207.61772,0.00019972,2]
[326990748,1715689843478,-207.61772,0.00019972,2]
[326990750,1715689843487,-157.13308104,0.00019973,2]
[326990751,1715689843496,-309.28863614,0.00019973,2]
[326990752,1715689843505,-155.08709736,0.00019973,2]
[326990753,1715689843515,-475.32221455,0.00019973,2]
[326990754,1715689843524,-154.96630494,0.00019973,2]
[326990755,1715689843534,-155.1005922,0.00019973,2]
[326990756,1715689843543,-458.16144716,0.00019973,2]
[326990757,1715689843553,-609.62611493,0.00019973,2]
[326990758,1715689843562,-305.43371295,0.00019973,2]
[326990759,1715689843571,-207.04612451,0.00019973,2]
[326990760,1715689843581,-247.29346306,0.00019973,2]
[326990761,1715689843590,-154.95734354,0.00019973,2]
[326990762,1715689843600,-667.298188,0.00019973,2]
[326990768,1715689843699,-667.298188,0.00019973,2]
[326990770,1715689843709,-667.298188,0.00019973,2]
[326990772,1715689843718,-667.298188,0.00019973,2]
[326990774,1715689843728,-151.0,0.00019973,2]
[326990776,1715689843737,-151.0,0.00019973,2]
[326990778,1715689843747,-151.0,0.00019973,2]
[326990780,1715689843756,-151.0,0.00019973,2]
[326990782,1715689843765,-671.491547,0.00019973,2]
[326990784,1715689843775,-671.491547,0.00019973,2]
[326990786,1715689843784,-151.0,0.00019973,2]
[326990788,1715689843794,-151.0,0.00019973,2]
[326990790,1715689843803,-151.0,0.00019973,2]
[326990792,1715689843812,-151.0,0.00019973,2]
[326990794,1715689843821,-207.61772,0.00019973,2]
[326990796,1715689843830,-207.61772,0.00019973,2]
[326990798,1715689843840,-151.0,0.00019973,2]
[326990800,1715689843849,-151.0,0.00019974,2]
[326990802,1715689843858,-151.0,0.00019974,2]
[326990804,1715689843870,-151.0,0.00019974,2]
[326990805,1715689843879,-151.0,0.00019974,2]
[326990807,1715689843888,-151.0,0.00019974,2]
[326990810,1715689843897,-151.0,0.00019974,2]
[326990812,1715689843906,-151.0,0.00019974,2]
[326990813,1715689843916,-151.0,0.00019974,2]
[326990815,1715689843925,-151.0,0.00019974,2]
[326990817,1715689843934,-151.0,0.00019974,2]
[326990819,1715689843944,-667.298188,0.00019974,2]
[326990821,1715689843953,-667.298188,0.00019974,2]
[326990823,1715689843962,-151.0,0.00019974,2]
[326990825,1715689843972,-169.634036,0.00019975,2]
[326990827,1715689843981,-169.634036,0.00019975,2]
[326990829,1715689843993,-169.634036,0.00019975,2]
[326990830,1715689844005,-169.634036,0.00019975,2]
[326990831,1715689844014,-151.0,0.00019975,2]
[326990832,1715689844023,-151.0,0.00019975,2]
[326990833,1715689844034,-151.0,0.00019975,2]
[326990835,1715689844046,-151.0,0.00019975,2]
[326990837,1715689844056,-151.0,0.00019975,2]
[326990838,1715689844065,-151.0,0.00019975,2]
[326990839,1715689844075,-151.0,0.00019975,2]
[326990840,1715689844084,-151.0,0.00019975,2]
[326990841,1715689844094,-151.0,0.00019976,2]
[326990842,1715689844103,-9388.70802364,0.00019978,2]
[326990843,1715689844113,-151.0,0.00019978,2]
[326990844,1715689844129,-671.491547,0.00019978,2]
[326990845,1715689844138,-671.491547,0.00019978,2]
[326990846,1715689844147,-151.0,0.00019978,2]
[326990847,1715689844157,-151.0,0.00019978,2]
[326990848,1715689844167,-2595.37774588,0.00019979,2]
[326990849,1715689844176,-189.71214175,0.00019979,2]
[326990850,1715689844186,-169.634036,0.00019984,2]
[326990851,1715689844196,-169.634036,0.00019984,2]
[326990852,1715689844205,-151.0,0.00019984,2]
[326990853,1715689844214,-207.61772,0.00019984,2]
[326990854,1715689844224,-207.61772,0.00019984,2]
[326990855,1715689844233,-2106.16453209,0.00019985,2]
[326990856,1715689844243,-151.0,0.00019985,2]
[326990857,1715689844253,-151.0,0.00019985,2]
[326990858,1715689844262,-151.0,0.00019985,2]
[326990859,1715689844271,-151.0,0.00019985,2]
[326990860,1715689844280,-667.298188,0.00019985,2]
[326990861,1715689844290,-667.298188,0.00019985,2]
[326990862,1715689844299,-151.0,0.00019985,2]
[326990863,1715689844309,-151.0,0.00019985,2]
[326990864,1715689844318,-7185.3154218,0.00019986,2]
[326990865,1715689844856,-13047.16436473,0.00019986,2]
[326990866,1715689844867,-169.634036,0.00019986,2]
[326990867,1715689844880,-169.634036,0.00019986,2]
[326990868,1715689844889,-151.0,0.00019986,2]
[326990869,1715689844899,-671.491547,0.00019986,2]
[326990870,1715689844908,-671.491547,0.00019986,2]
[326990871,1715689844918,-151.0,0.00019986,2]
[326990872,1715689844927,-151.0,0.00019986,2]
[326990873,1715689845003,-23684.99123845,0.00019988,2]
[326990874,1715689845063,-2505.57762841,0.00019988,2]
[326990875,1715689845073,-169.634036,0.00019988,2]
[326990876,1715689845085,-169.634036,0.00019988,2]
[326990877,1715689845096,-179.253188,0.00019988,2]
[326990878,1715689845105,-249.567945,0.00019988,2]
[326990879,1715689845120,-151.0,0.00019988,2]
[326990880,1715689845129,-151.0,0.00019988,2]
[326990881,1715689845138,-151.0,0.00019988,2]
[326990882,1715689845147,-429.07929095,0.00019988,2]
[326990883,1715689845158,-238.21889705,0.00019988,2]
[326990884,1715689845167,-667.298188,0.00019988,2]
[326990885,1715689845177,-151.0,0.00019988,2]
[326990886,1715689845186,-671.491547,0.00019988,2]
[326990887,1715689845195,-671.491547,0.00019988,2]
[326990888,1715689845204,-151.0,0.00019988,2]
[326990889,1715689845214,-175.502623,0.00019988,2]
[326990890,1715689845223,-151.0,0.00019988,2]
[326990891,1715689845232,-207.61772,0.00019988,2]
[326990892,1715689845242,-207.61772,0.00019988,2]
[326990893,1715689845251,-8464.0694375,0.00019992,2]
[326990894,1715689845261,-154.86067302,0.00019994,2]
[326990895,1715689845270,-1354.00120504,0.00019995,2]
[326990896,1715689845280,-496.0525076,0.00019995,2]
[326990897,1715689845289,-279.51456046,0.0002,2]
[326990898,1715689845299,-151.0,0.00021918,2]
[326990899,1715689845308,-151.0,0.00021918,2]
[326990900,1715689845317,-708.26264339,0.000225,2]
[326990901,1715689845326,-262.074389,0.00024658,2]
[326990902,1715689845335,-262.074389,0.00024658,2]
[326990903,1715689845345,-262.074389,0.00024658,2]
[326990904,1715689845354,-262.074389,0.00024658,2]
[326990905,1715689845363,-262.074389,0.00024658,2]
[326990906,1715689845378,-262.074389,0.00024658,2]
[326990907,1715689845388,-262.074389,0.00024658,2]
[326990908,1715689845397,-262.074389,0.00024658,2]
[326990909,1715689845406,-262.074389,0.00024658,2]
[326990910,1715689845416,-262.074389,0.00024658,2]
[326990911,1715689845425,-815.62130035,0.00024999,2]
[326990912,1715689845434,-26537.12259191,0.00025,2]
[326990913,1715689845444,-320.68043693,0.00025,2]
[326990914,1715689845455,-169.634036,0.00025,2]
[326990915,1715689845464,-169.634036,0.00025,2]
[326990916,1715689845473,-262.074389,0.00025,2]
[326990917,1715689845482,-262.074389,0.00025,2]
[326990918,1715689845492,-151.0,0.00025,2]
[326990919,1715689845502,-198.452035,0.00025,2]
[326990920,1715689845511,-151.0,0.00025,2]
[326990921,1715689845521,-667.298188,0.00025,2]
[326990922,1715689845530,-667.298188,0.00025,2]
[326990923,1715689845540,-151.0,0.00025,2]
[326990924,1715689845549,-671.491547,0.00025,2]
[326990925,1715689845560,-671.491547,0.00025,2]
[326990926,1715689845569,-151.0,0.00025,2]
[326990927,1715689845579,-151.0,0.00025,2]
[326990928,1715689845588,-207.61772,0.00025,2]
[326990929,1715689845597,-207.61772,0.00025,2]
[326990930,1715689845606,-244.8,0.00025794,3]
[326990931,1715689845615,-177.825608,0.00027123,2]
[326990932,1715689845631,-227.85777289,0.0002739,10]
[326990933,1715689845641,-506.0,0.0003,120]
[326990934,1715689845650,-3966.74516132,0.0003,4]
[326990935,1715689845660,-757.7563862,0.0003,4]
[326990936,1715689845669,-10.99260491,0.00031999,4]
[326990937,1715689845682,-901.66830725,0.00031999,4]
[326990938,1715689845691,-1000.0,0.00032,31]
[326990939,1715689845700,-500.0,0.00032,120]
[326990940,1715689845709,-374.83169275,0.00032,4]
[326990941,1715689845721,-136.70982433,0.00032,4]
[326990942,1715689845731,-668.08652704,0.00032258,4]
[326990943,1715689845740,-155.38427888,0.00032258,4]
[326990944,1715689845750,-406.16278735,0.00032258,4]
[326990945,1715689845763,-6412.34740296,0.00032258,4]
[326990991,1715689848233,1575.13331198,0.00016051,2]
[326990992,1715689849501,1575.13331198,0.00016413,2]
[326990993,1715689849903,1575.13331198,0.00016676,2]
[326990994,1715689850276,1575.13331198,0.00016955,2]
[326990995,1715689855358,200.09916125,9.999e-05,2]
[326990996,1715690484269,468.91248838,9.999e-05,2]
[326990998,1715690615034,260.91918383,9.999e-05,2]
[326991000,1715690777367,513.01214525,9.999e-05,2]
[326991001,1715690818877,1148.32988939,0.00015,2]
[326991008,1715690940183,1349.59873214,9.999e-05,2]
[326991018,1715691031282,7889.12419971,0.000171,2]
[326991087,1715691033646,-2792.7493606,0.00017101,2]
[326991089,1715691033656,-260.91918383,0.00017102,2]
[326991091,1715691033665,-2676.97049033,0.00017102,2]
[326991093,1715691033675,-3060.26446828,0.00017103,2]
[326991095,1715691033684,-12390.49575826,0.00017159,2]
[326991097,1715691033694,-513.01214525,0.0001797,2]
[326991099,1715691033703,-272.38076791,0.00017971,2]
[326991101,1715691033713,-150.0,0.000189,2]
[326991103,1715691033722,-194.41286171,0.0001897,2]
[326991105,1715691033731,-257.97168029,0.00019863,2]
[326991107,1715691033740,-1199.69448957,0.00019959,2]
[326991109,1715691033749,-817.27495953,0.0001996,2]
[326991111,1715691033758,-1222.3865686,0.0001996,2]
[326991113,1715691033767,-282.83879978,0.0001996,2]
[326991115,1715691033777,-500.0,0.0001996,2]
[326991117,1715691033787,-500.0,0.0001996,2]
[326991119,1715691033796,-500.0,0.0001996,2]
[326991120,1715691033805,-398.30658032,0.0001996,2]
[326991122,1715691033815,-500.0,0.0001996,2]
[326991123,1715691033823,-500.0,0.0001996,2]
[326991124,1715691033833,-500.0,0.0001996,2]
[326991125,1715691033842,-500.0,0.0001996,2]
[326991126,1715691033851,-500.0,0.0001996,2]
[326991127,1715691033860,-500.0,0.0001996,2]
[326991129,1715691033870,-500.0,0.0001996,2]
[326991131,1715691033879,-500.0,0.0001996,2]
[326991133,1715691033888,-500.0,0.0001996,2]
[326991134,1715691033901,-500.0,0.0001996,2]
[326991135,1715691033913,-500.0,0.0001996,2]
[326991137,1715691033922,-500.0,0.0001996,2]
[326991138,1715691033930,-500.0,0.0001996,2]
[326991139,1715691033939,-341.62368678,0.0001996,2]
[326991140,1715691033948,-500.0,0.0001996,2]
[326991141,1715691033958,-500.0,0.0001996,2]
[326991142,1715691033967,-500.0,0.0001996,2]
[326991143,1715691033975,-201.447464,0.00019962,2]
[326991144,1715691033984,-201.447464,0.00019962,2]
[326991145,1715691033994,-266.919276,0.00019962,2]
[326991146,1715691034003,-266.919276,0.00019962,2]
[326991147,1715691034012,-151.0,0.00019962,2]
[326991148,1715691034021,-151.0,0.00019962,2]
[326991149,1715691034030,-3248.66817921,0.00019963,2]
[326991150,1715691034039,-202.50004648,0.00019963,2]
[326991151,1715691034049,-235.918132,0.00019963,2]
[326991152,1715691034059,-330.6132766,0.00019964,2]
[326991153,1715691034067,-668.08652704,0.00019964,2]
[326991154,1715691034077,-155.38427888,0.00019964,2]
[326991155,1715691034088,-151.0,0.00019964,2]
[326991156,1715691034099,-151.0,0.00019964,2]
[326991157,1715691034110,-2251.12195042,0.00019965,2]
[326991158,1715691034119,-588.40960856,0.00019966,2]
[326991159,1715691034129,-151.0,0.00019966,2]
[326991160,1715691034139,-151.0,0.00019966,2]
[326991161,1715691034152,-3105.45921958,0.00019968,2]
[326991162,1715691034165,-3024.08689552,0.00019968,2]
[326991163,1715691034174,-93.95134638,0.00019968,2]
[326991197,1715691038734,-323.6,0.00019951,3]
[326991199,1715691038744,-200.67413104,0.0001996,2]
[326991201,1715691038754,-963.05974595,0.0001996,2]
[326991203,1715691038762,-963.05974595,0.0001996,2]
[326991205,1715691038772,-963.05974595,0.0001996,2]
[326991207,1715691038782,-963.05974595,0.0001996,2]
[326991209,1715691038792,-963.05974595,0.0001996,2]
[326991210,1715691038802,-850.01395297,0.0001996,2]
[326991213,1715691038813,-113.04579298,0.0001996,2]
[326991214,1715691038822,-963.05974595,0.0001996,2]
[326991216,1715691038831,-963.05974595,0.0001996,2]
[326991218,1715691038840,-963.05974595,0.0001996,2]
[326991220,1715691038849,-963.05974595,0.0001996,2]
[326991222,1715691038858,-963.05974595,0.0001996,2]
[326991223,1715691038867,-702.71023877,0.0001996,2]
[326991226,1715691038879,-260.34950718,0.0001996,2]
[326991227,1715691038888,-963.05974595,0.0001996,2]
[326991229,1715691038899,-576.1304755,0.0001996,2]
[326991408,1715691040847,-386.92927045,0.0001996,2]
[326991410,1715691040857,-963.05974595,0.0001996,2]
[326991412,1715691040867,-963.05974595,0.0001996,2]
[326991414,1715691040876,-393.11229586,0.0001996,2]
[326991416,1715691040888,-569.94745009,0.0001996,2]
[326991418,1715691040897,-963.05974595,0.0001996,2]
[326991420,1715691040909,-963.05974595,0.0001996,2]
[326991422,1715691040918,-963.05974595,0.0001996,2]
[326991424,1715691040927,-963.05974595,0.0001996,2]
[326991426,1715691040936,-963.05974595,0.0001996,2]
[326991428,1715691040946,-167.23891117,0.0001996,2]
[326991431,1715691040959,-795.82083478,0.0001996,2]
[326991433,1715691040968,-730.69562436,0.0001996,2]
[326991435,1715691040980,-232.36412159,0.0001996,2]
[326991437,1715691040990,-963.05974595,0.0001996,2]
[326991439,1715691040999,-85.89510296,0.0001996,2]
[326991441,1715691041011,-877.16464299,0.0001996,2]
[326991443,1715691041021,-963.05974595,0.0001996,2]
[326991456,1715691041123,-963.05974595,0.0001996,2]
[326991458,1715691041137,-963.05974595,0.0001996,2]
[326991460,1715691041147,-963.05974595,0.0001996,2]
[326991462,1715691041158,-963.05974595,0.0001996,2]
[326991464,1715691041167,-963.05974595,0.0001996,2]
[326991466,1715691041177,-963.05974595,0.0001996,2]
[326991468,1715691041187,-963.05974595,0.0001996,2]
[326991470,1715691041197,-963.05974595,0.0001996,2]
[326991472,1715691041206,-358.48142346,0.0001996,2]
[326991720,1715691043920,-604.57832249,0.0001996,2]
[326991721,1715691043930,-963.05974595,0.0001996,2]
[326991722,1715691043940,-963.05974595,0.0001996,2]
[326991723,1715691043949,-963.05974595,0.0001996,2]
[326991724,1715691043958,-963.05974595,0.0001996,2]
[326991725,1715691043967,-963.05974595,0.0001996,2]
[326991726,1715691043977,-963.05974595,0.0001996,2]
[326991727,1715691043986,-963.05974595,0.0001996,2]
[326991728,1715691043995,-963.05974595,0.0001996,2]
[326991729,1715691044004,-963.05974595,0.0001996,2]
[326991730,1715691044014,-1434.4237724,0.00019968,2]
[326991731,1715691044023,-744.57696609,0.00019968,2]
[326991732,1715691044032,-532.8183368,0.00019968,2]
[326991733,1715691044041,-1799.53972863,0.00019968,2]
[326991734,1715691044050,-1520.60312054,0.00019968,2]
[326991735,1715691044059,-151.0,0.00019968,2]
[326991736,1715691044068,-151.0,0.00019968,2]
[326991737,1715691044077,-151.0,0.00019968,2]
[326991738,1715691044086,-164.13088,0.00019968,2]
[326991739,1715691044095,-201.447464,0.00019968,2]
[326991740,1715691044104,-201.447464,0.00019968,2]
[326991742,1715691044114,-266.919276,0.00019968,2]
[326991744,1715691044123,-266.919276,0.00019968,2]